Cogmind - Beta 14 @@@ ROGUE MODE // 2025.01.14 @ 15:33:03 Player: Doobadoop Result: Destroyed self with Rocket Launcher Performance ------------- Evolutions (0) 0 Regions Visited (3) 600 Robots Destroyed (10) 50 Value Destroyed (336) 336 Prototype IDs (0) 0 Alien Tech Used (0) 0 Bonus (0) 0 TOTAL SCORE: 986 Bonus ------- None Cogmind --------- Core Integrity 0/250 Matter 268/300 Energy 90/100 System Corruption 0% Temperature Cool (0) Movement Core (100) Ox1 Location -10/Subcaves Parts ------- > --- POWER (1) -------- (None) > --- PROPULSION (2) --- (None) > --- UTILITY (2) ------ (None) > --- WEAPON (2) ------- Rocket Launcher > --- INVENTORY (5) ---- Small Storage Unit Structural Scanner Sensor Array Small Laser Mining Laser Peak State ------------ > --- POWER ------------ Ion Engine > --- PROPULSION ------- Light Treads Light Treads > --- UTILITY ---------- Small Storage Unit High-capacity Matter Pod > --- WEAPON ----------- Small Laser Small Laser > --- INVENTORY -------- Light Ion Engine Aluminum Leg Aluminum Leg Small Storage Unit Small Laser [Rating: 7] Favorites ----------- Power Ion Engine Engine Ion Engine Propulsion Light Treads Treads Light Treads Utility Small Storage Unit Storage Small Storage Unit Weapon Small Laser Energy Gun Small Laser Energy Cannon Beam Cannon Launcher Rocket Launcher Special Weapon Mining Laser Build | -11 -10 -10 -10 ------- Run | Yrd Mat Min Sub Slots Evolved . | . . . . Power . | . . . . Propulsion . | . . . . Utility . | . . . . Weapon . | . . . . Parts Attached 21 | 7 1 3 10 Power 3 | 2 . . 1 Engine 3 | 2 . . 1 Core . | . . . . Reactor . | . . . . Propulsion 4 | 2 . 1 1 Treads 4 | 2 . 1 1 Leg . | . . . . Wheel . | . . . . Hover . | . . . . Flight . | . . . . Utility 2 | 1 1 . . Device . | . . . . Storage 2 | 1 1 . . Processor . | . . . . Hackware . | . . . . Protection . | . . . . Artifact . | . . . . Weapon 12 | 2 . 2 8 Energy Gun 5 | 2 . . 3 Energy Cannon 2 | . . . 2 Ballistic Gun . | . . . . Ballistic Cannon . | . . . . Launcher 1 | . . . 1 Special Weapon 4 | . . 2 2 Impact Weapon . | . . . . Slashing Weapon . | . . . . Piercing Weapon . | . . . . Special Melee Weapon . | . . . . Unidentified Prototypes . | . . . . Parts Lost 8 | . . . 8 Power 2 | . . . 2 Propulsion 3 | . . . 3 Utility 1 | . . . 1 Weapon 2 | . . . 2 Highest Loss Streak 8 | . . . 8 To Critical Strikes . | . . . . Average Slot Usage (%) 93 | . 97 100 86 Engine 13 | . 14 14 11 Treads 25 | . 28 28 23 Storage 25 | . 25 28 24 Energy Gun 18 | . 28 26 6 Energy Cannon 3 | . . . 7 Special Weapon 5 | . . 1 11 Peak Build Rating 7 | 6 7 7 7 Average Rating 6 | 5 6 7 6 On Entrance 5 | . 6 7 7 Naked Turns . | . . . . Heaviest Build 18 | 12 16 16 18 Greatest Support 40 | 40 40 40 40 Greatest Overweight (x) 1 | . . . 1 Average Overweight (x) . | . . . . Largest Inventory Capacity 8 | 8 8 8 8 Average Capacity 7 | 7 8 8 7 Most Carried 8 | 5 8 8 8 Average Carried 6 | 3 6 7 7 Final Capacity 8 | 8 8 8 5 Final Carried 8 | 5 8 8 5 Class Distribution -------------------- 100% | Mutant Dominant Class ---------------- Mutant | -10/Materials Mutant | -10/Mines Mutant | -10/Subcaves Resources | -11 -10 -10 -10 ----------- Run | Yrd Mat Min Sub Matter Collected 507 | 238 35 184 50 Remotely . | . . . . Salvage Created 451 | 44 35 174 198 Parts 18 | 1 1 7 9 Haulers Intercepted . | . . . . Recyclers Shooed 1 | . 1 . . Parts Field Recycled . | . . . . Retrieved Matter . | . . . . Parts Self-Destructed 13 | . . . 13 Prevented . | . . . . Kills | -11 -10 -10 -10 ------- Run | Yrd Mat Min Sub Combat Hostiles Destroyed 9 | . 1 3 5 Guns 7 | . 1 3 3 Cannons 1 | . . . 1 Classes Destroyed 5 | 1 1 2 1 Recycler 2 | 1 . 1 . Grunt 1 | . 1 . . Sentry 2 | . . 2 . Subdweller 5 | . . . 5 Assembled 1 | . . 1 . Best Kill Streak 2 | 1 1 2 2 Combat Bots Only 2 | . 1 2 2 Max Kills in Single Turn 1 | 1 1 1 1 Gunslinging . | . . . . Exploded . | . . . . Melee . | . . . . Uniques/NPCs Destroyed . | . . . . Combat | -11 -10 -10 -10 -------- Run | Yrd Mat Min Sub Hostile Shots Fired 82 | . 6 24 52 Missed 21 | . 1 6 14 Damage Taken 1145 | . 54 288 803 Core 259 | . 10 58 191 Absorbed by Shields . | . . . . Core Remaining (%) 100 | 100 . . . Volleys Fired 64 | 1 8 9 46 Largest 2 | 2 2 2 2 Hottest 200 | 80 80 200 200 Shots Fired 102 | 2 16 18 66 Gun 56 | 2 16 12 26 Cannon 17 | . . . 17 Launcher 2 | . . . 2 Special 27 | . . 6 21 Kinetic . | . . . . Thermal 100 | 2 16 18 64 Explosive 2 | . . . 2 Electromagnetic . | . . . . Robot Hit Streak 28 | 1 9 16 28 Robot Miss Streak 2 | 1 2 . 1 Penetration Max . | . . . . Secondary Targets . | . . . . Shots Hit Robots 66 | 1 13 12 40 Core Hits 24 | 2 3 7 12 Critical Kills 1 | . . . 1 Critical Parts Destroyed . | . . . . Critical Strikes 1 | . . . 1 Meltdown 1 | . . . 1 Melee Attacks . | . . . . Impact . | . . . . Slashing . | . . . . Piercing . | . . . . Sneak Attacks . | . . . . Combat Hostiles . | . . . . Follow-up Attacks . | . . . . Damage Inflicted 968 | 28 145 156 639 Guns 567 | 12 139 133 283 Cannons 261 | . . . 261 Explosions 95 | . . . 95 Melee . | . . . . Ramming 45 | 16 6 23 . Kinetic . | . . . . Thermal 828 | 12 139 133 544 Explosive 95 | . . . 95 Electromagnetic . | . . . . Impact . | . . . . Slashing . | . . . . Piercing . | . . . . Highest Corruption . | . . . . Average Corruption . | . . . . Corruption Purged . | . . . . Corruption Blocked . | . . . . Overload Shots . | . . . . Overflow Damage . | . . . . Projectiles . | . . . . Explosions . | . . . . Melee . | . . . . Knockbacks . | . . . . Impact . | . . . . Kinetic . | . . . . Secondary . | . . . . Self-Inflicted Damage 23 | . . . 23 Shots 1 | . . . 1 Rammed 11 | 5 1 5 . Targets Rammed 12 | 5 1 6 . Kicked . | . . . . Crushed 1 | . . 1 . Highest Temperature 120 | 18 120 74 26 Average Temperature 38 | 12 50 35 12 Received Heat Transfer 267 | . 30 63 174 Siege Activations . | . . . . Robots Corrupted . | . . . . Combat Hostiles . | . . . . Parts Fried . | . . . . Impact Corruptions . | . . . . Robots Melted 1 | . . . 1 Combat Hostiles 1 | . . . 1 Parts Melted 6 | . . 1 5 Heat Transferred 1830 | 25 325 300 1180 Parts Sabotaged . | . . . . Parts Stolen . | . . . . Parts Stripped . | . . . . Power Chain Reactions . | . . . . Alert | -11 -10 -10 -10 ------- Run | Yrd Mat Min Sub Peak Influence 60 | 5 48 60 . Initial 3 | . 3 . . Average 23 | . 13 46 . Maximum Alert Level . | . . . . Low Security (%) 100 | 100 100 100 . Level 1 . | . . . . Level 2 . | . . . . Level 3 . | . . . . Level 4 . | . . . . Level 5 . | . . . . High Security . | . . . . Max Security . | . . . . Squads Dispatched 1 | . 1 . . Investigation . | . . . . Extermination . | . . . . Reinforcement 1 | . 1 . . Assault . | . . . . Garrison . | . . . . Intercept . | . . . . Searches Triggered . | . . . . Construction Impeded . | . . . . Haulers Reinforced . | . . . . Active Scanning Responses . | . . . . Cargo Convoy Interrupts . | . . . . Stealth | -11 -10 -10 -10 --------- Run | Yrd Mat Min Sub Distress Signals 1 | . 1 . . Communications Jammed . | . . . . Distress Signals . | . . . . Times Spotted 14 | . 4 3 7 Peak Tracking Total 3 | . 2 2 3 Tactical Retreats . | . . . . Traps | -11 -10 -10 -10 ------- Run | Yrd Mat Min Sub Traps Triggered . | . . . . Indirectly . | . . . . Trap Hack Attempts . | . . . . Triggered . | . . . . Disarmed . | . . . . Reprogrammed . | . . . . Reused . | . . . . Traps Extracted . | . . . . Installed . | . . . . Triggered . | . . . . Machines | -11 -10 -10 -10 ---------- Run | Yrd Mat Min Sub Machines Disabled . | . . . . Max in Single Turn . | . . . . Machines Repaired . | . . . . Machines Dismantled . | . . . . Machines Sabotaged . | . . . . Overloaded Fab Kills . | . . . . Hacking | -11 -10 -10 -10 --------- Run | Yrd Mat Min Sub Machines Accessed 1 | . 1 . . Terminals 1 | . 1 . . Fabricators . | . . . . Repair Stations . | . . . . Recycling Units . | . . . . Scanalyzers . | . . . . Garrison Access . | . . . . Total Hacks 2 | . 2 . . Successful 1 | . 1 . . Failed 1 | . 1 . . Catastrophic . | . . . . Database Lockouts . | . . . . Manual . | . . . . Terminals 2 | . 2 . . Fabricators . | . . . . Repair Stations . | . . . . Recycling Units . | . . . . Scanalyzers . | . . . . Garrison Access . | . . . . Terminal Hacks 1 | . 1 . . Zone Layout 1 | . 1 . . Fabricator Hacks . | . . . . Repair Station Hacks . | . . . . Recycling Unit Hacks . | . . . . Scanalyzer . | . . . . Garrison Access Hacks . | . . . . Unauthorized Hacks . | . . . . Terminals . | . . . . Fabricators . | . . . . Repair Stations . | . . . . Recycling Units . | . . . . Scanalyzers . | . . . . Garrison Access . | . . . . Data Cores Recovered . | . . . . Used . | . . . . Hacking Detections 1 | . 1 . . Full Trace Events . | . . . . Feedback Events . | . . . . Feedback Blocked . | . . . . Robot Schematics Acquired . | . . . . Robots Built . | . . . . Authchips . | . . . . Time . | . . . . Total Robot Build Rating . | . . . . Part Schematics Acquired . | . . . . Parts Built . | . . . . Authchips . | . . . . Time . | . . . . Total Part Build Rating . | . . . . Parts Repaired . | . . . . Time . | . . . . Parts Recycled . | . . . . Recycled Matter . | . . . . Retrieved Matter . | . . . . Retrieved Components . | . . . . Parts Scanalyzed . | . . . . Part Schematics Acquired . | . . . . Parts Damaged . | . . . . Bothacking | -11 -10 -10 -10 ------------ Run | Yrd Mat Min Sub Used RIF Installer . | . . . . Robots Hacked . | . . . . Non-combat . | . . . . Combat . | . . . . Robot Hacks Applied . | . . . . Relay Couplers Released . | . . . . Fabnet Peak Effective % . | . . . . Robots Rewired . | . . . . Allies Hacked . | . . . . Hacks Repelled . | . . . . Allies | -11 -10 -10 -10 -------- Run | Yrd Mat Min Sub Total Allies . | . . . . Largest Group . | . . . . Highest-Rated Group . | . . . . Highest-Rated Ally . | . . . . Total Orders . | . . . . Ally Attacks . | . . . . Total Damage . | . . . . Kills . | . . . . Allies Corrupted . | . . . . Allies Melted . | . . . . Intel | -11 -10 -10 -10 ------- Run | Yrd Mat Min Sub Robot Analysis Total . | . . . . Derelict Logs Recovered 1 | . . 1 . Drone Launches . | . . . . Drone Recoveries . | . . . . Exploration | -11 -10 -10 -10 ------------- Run | Yrd Mat Min Sub Turns Passed 1975 | 190 556 446 783 Spaces Moved 1086 | 109 252 241 484 Core 170 | 8 . . 162 Treads 916 | 101 252 241 322 Legs . | . . . . Wheels . | . . . . Hover . | . . . . Flight . | . . . . Fastest Speed 50 | 50 160 160 50 Average Speed 142 | 151 160 160 123 Slowest Speed 160 | 160 160 160 160 Overloaded Moves . | . . . . Propulsion Burnouts . | . . . . Robots Hopped . | . . . . Cave-ins Triggered . | . . . . Exploration Rate (%) 24 | 5 28 46 17 Regions Visited 3 Branch Regions 2 Pre-discovered Areas . | . . . . Known Exits Taken 1 | . . 1 . Unknown Exits Taken 2 | 1 1 . . Scrap Searched 1 | . . 1 . Spaces Dug . | . . . . Terrain Destroyed 11 | . . . 11 Melee . | . . . . Projectile . | . . . . AOE 11 | . . . 11 Terrain Rammed . | . . . . Walls Destroyed . | . . . . Machines Disabled . | . . . . Actions | -11 -10 -10 -10 --------- Run | Yrd Mat Min Sub Total 1345 | 125 388 270 562 Wait 139 | . 122 1 16 Move 1083 | 108 251 240 484 Hop . | . . . . Pick Up 15 | 4 4 5 2 Fast Attach 7 | 6 1 . . Attach 6 | . . . 6 Detach 1 | . . . 1 Swap 8 | 1 . 3 4 Drop 10 | . 1 6 3 Fire 64 | 1 8 9 46 Melee . | . . . . Ram . | . . . . Kick . | . . . . Crush 12 | 5 1 6 . Escape Stasis . | . . . . Rewire . | . . . . Trap . | . . . . Miscellaneous . | . . . . Route ------- -11/Scrapyard -10/Materials -10/Mines (discovered 2 exits: [*Mat] / *Sub) -10/Subcaves History --------- Turn | Location | Event 4 | -11/Scrapyard | Discovered new exit (range 16) 191 | -11/Scrapyard | Entered Materials 307 | -10/Materials | Build established: Mutant 632 | -10/Materials | Discovered new exit (range 12) 747 | -10/Materials | Entered Mines 936 | -10/Mines | Identified exit to Subcaves 962 | -10/Mines | Received a Rocket Launcher from a helpful Derelict 981 | -10/Mines | Assembled infested the area 986 | -10/Mines | Assisted by a Guerilla fighting off Assembled 1132 | -10/Mines | Discovered new exit (range 9) 1193 | -10/Mines | Entered Subcaves 1856 | -10/Subcaves | Core integrity fell below 50% 1866 | -10/Subcaves | Core integrity fell below 20% 1894 | -10/Subcaves | Lost 8 parts (2p3n1u2w) 1940 | -10/Subcaves | Shifting Twisted Machinery released Barrage Gun 1976 | -10/Subcaves | Destroyed self with Rocket Launcher Last Messages --------------- 01839_ Lgt. Treads destroyed. 01840_ Hcp. Matter Pod destroyed. 01843_ U1-WM9(R) destroyed. 01845_ GL-VHL(R) affixes Scrap Shield Fragment to Scrap Shield. 01850_ Lgt. Treads destroyed. 01851_ Sml. Laser destroyed. 01861_ GL-VHL(R) destroyed. 01861_ Ion Engine destroyed. 01863_ Beam Cannon destroyed. 01871_ YT-X0T(R) affixes Scrap Shield Fragment to Scrap Shield. 01883_ Sub. Monowheel melted. 01883_ Sub. Power Source melted. 01883_ YT-X0T(R) destroyed. 01885_ Acquired 10 matter. 01925_ Subatomizers dissect the Disposable Heat Sink. Barrage Gun falls loose from the Twisted Machinery. Map ----- +----------------------------------------------------+ | ?????????????????????????????????????????????????? | | ?????????????????????????????????????????????????? | | ?????????????????????????????????????????????????? | | ?????????????????????????????????????????????????? | | ?????????????????????????????????????????????????? | | ?????????????????????????????????????????????????? | | ?????????????????????????????????????????????????? | | ?????????????????????????????????????????????????? | | ?????????????????????????????????????????????????? | | ?????????????????????????????????????????????????? | | ?????????????????????????????????????????????????? | | ?????????????????????????????????????????????????? | | ????????????????????????????????????????????????## | | ??????????????????????????????????????????????? | | ??????????????????????????????????????????????? | | ?????????????????????????????????????????????? | | ?????????????????????????????????????????????? | | ???????? #?????????????####??????#####?????### | | ??????? #???#??####### ##?????# ##### | | ??????? ???# ## #??????# | | ???????? #??# ##?????# | | ????????? ??# #####?#### | | ?????????? #??# " ##???## | | ??????????# ###""" ####?# | | ??????????#""" " "#"### ## | | ???????????""""""" @ RR #??# | | ???????????## """"""" ####### ##???? | | ???????????#" # """### ##??######## "#????? | | ???????????#"" ###?#?## ### #?????#"""#???? | | ????######### ##?????# ## #?#" #???? | | ???##""##"### "######## """"""? #???? | | ####"""""" " "## # ####" "" # #???? | | #""""""" ##"" "" ##???# " ##" #???? | | #"""""" #?#""" " "" ###?????""" #?#" ???? | | ?#""""" ###""" " ##### #??????? "#""" ??? | | ??#" "#?# " ######??## ##????????"" "?" ??? | | ??### ####""" #???# #?# ##?????????" " #?? | | ????# & #?#"""|##?## ### ##?##???????? #?? | | ????##&##?###" #?# # ### ##?????? ###??? | | ??####%##??##" #?# ## ####???# ###??? | | ??#""& ##?# ##?#### ## #???# #??? | | ??# " #### #?????# ## ##### #??? | | ??# # #?????##### #?# ##""" #???? | | ??## #????????## ### """"" #??### | | ???# #???????## """"#???# | | ???# # ## ##???????# " ##?## | | ???## ######????????# ### | | ????## #?????????????# | | ?###?## ##????????????# | | ## #### ##???????????# &%%## " | +----------------------------------------------------+ Best States ------------- Heat Dissipation 25 Energy Generation 10 Energy Capacity 250 Matter Stores 500 Matter Capacity 500 Sight Range 16 Terrain Scan Density 10 Evasion (%) 50 Recoil Reduction 2 Item Schematics ----------------- None Robot Schematics ------------------ None Fabricated ------------ Nothing Alien Tech Used ----------------- None Achievements -------------- I Survived The Infestation Challenges ------------ None Game ------ Seed IntegratedDispersionSuite Manual? 0 Play Time 00:12:17 Cumulative 10.2 hours Start 2025.01.14 @ 15:20:40 End 2025.01.14 @ 15:33:03 Sessions 1 Manual Loads 0 Difficulty Rogue Special Mode None Game No. 16 Rogue 14 Adventurer 2 Explorer 0 Win Type - Total 0 Types 0/0/0/0/0/0/0/0/0 Lore% 5 Gallery% 19 Achievement% 16 Wizard Run 0 Options --------- Layout 1 ASCII 0 Keyboard 0 Movement Arrows Keybinds 0 Fullscreen 1 Font 32/SmallcapsGlow Map View 50x35 Zoom Use 0% Tactical HUD 1 Map Filters NONE Filters NONE Steam 1 RUN: b30792b2-7e44-48e5-9b71-e90ca50deade